[Event "4th Tata Steel India Blitz Open 2022"]
[Site "Kolkota"]
[Date "2022.12.03"]
[Round "2.3"]
[White "Maghsoodloo, Parham"]
[Black "Gukesh D"]
[Result "1-0"]
[ECO "C11"]
[WhiteElo "2720"]
[BlackElo "2725"]
[Annotator "TA"]
[PlyCount "77"]
[EventDate "2022.11.29"]
[EventType "tourn"]
[EventCountry "IND"]
[SourceTitle "playchess.com"]
[Source "ChessBase"]
[SourceQuality "1"]
[TimeControl "180+2"]

{[%evp 17,77,10,18,9,32,21,33,18,33,29,64,47,80,44,93,55,82,8,46,49,68,69,63,75,83,84,104,101,117,116,125,77,80,77,77,77,77,77,70,69,125,98,177,177,181,181,181,181,295,295,475,455,416,339,2079,1897,6162,6083,2679,2542,29964,10888]} 1. e4 {[%emt 0:00:03]} c6 {[%emt 0:00:08][%cal Bc7c6,Bc6c5][%mdl 32]} 2. d4 {[%emt 0:00:06]} d5 {[%emt 0:00:02]} 3. f3 {[%emt 0:00:01]} e6 {[%emt 0:00:04]} 4. Nc3 {[%emt 0:00:01]} Nf6 {[%emt 0:00:04]} 5. e5 {[%emt 0:00:17]} Nfd7 {[%emt 0:00:01]} 6. f4 {[%emt 0:00:01]} c5 {[%emt 0:00:01]} 7. Nf3 {[%emt 0:00:01]} Nc6 {[%emt 0:00:01]} 8. Be3 {[%emt 0:00:01]} Be7 {[%emt 0:00:02]} 9. Qd2 {[%emt 0:00:07] 9.a3 is the recent fashion.} a6 {[%emt 0:00:01]} 10. a3 {[%emt 0:00:01] C11: French: Classical System: 4 e5 and 4 Bg5 dxe4.} b5 {[%emt 0:00:04]} 11. dxc5 {[%emt 0:00:04]} Nxc5 {[%emt 0:00:17]} 12. Qf2 {[%emt 0:00:04] White is slightly better.} Nd7 {[%emt 0:00:08]} ({Don't take} 12... Ne4 13. Nxe4 dxe4 14. Rd1 $16) 13. Bd3 {[%emt 0:00:04]} Bb7 {[%emt 0:00:02]} 14. O-O {[%emt 0:00:03]} O-O {[%emt 0:00:27]} 15. Ne2 {[%emt 0:00:04] [#]} f6 $146 {[%emt 0:00:25]} (15... b4 $14) ({Predecessor:} 15... Qc7 16. b4 a5 17. c3 Ba6 18. Kh1 Rfb8 19. Qg3 f5 20. exf6 Bxf6 21. Qh3 Nf8 22. Ng5 Bxg5 23. fxg5 {1-0 (40) Song,J (2312)-Lyell,M (2198) Budapest 2021}) 16. exf6 {[%emt 0:00:02]} Nxf6 {[%emt 0:00:03]} 17. Bc5 {[%emt 0:00:27]} (17. Qg3 $16) 17... Bxc5 {[%emt 0:00:05]} (17... Ne4 {feels hotter.} 18. Bxe4 dxe4 19. Ng5 Bxg5 20. Bxf8 Bh4) 18. Qxc5 {[%emt 0:00:03]} Rc8 {[%emt 0:00:03]} 19. Qe3 {[%emt 0:00:08] White has more active pieces.} Qd6 {[%emt 0:00:01]} 20. Ned4 {[%emt 0:00:26]} (20. Rae1 {keeps more tension.} Ne4 21. Ng3 Na5 22. Bxe4 dxe4 23. Nxe4 Qxf4 24. Qb6) 20... Nxd4 {[%emt 0:00:10]} 21. Qxd4 {[%emt 0:00:04]} g6 {[%emt 0:00:36]} 22. Rae1 {[%emt 0:00:03]} Rce8 {[%emt 0:00:01]} 23. g3 {[%emt 0:00:08]} Nd7 {[%emt 0:00:07]} 24. Ne5 {[%emt 0:00:02]} (24. Re2 $142) 24... Qc5 $16 {[%emt 0:00:07]} 25. c3 {[%emt 0:00:24]} Qxd4+ {[%emt 0:00:07]} 26. cxd4 {[%emt 0:00:01]} Nxe5 {[%emt 0:00:02]} 27. fxe5 {[%emt 0:00:05]} Rc8 {[%emt 0:00:04]} 28. h4 {[%emt 0:00:03]} Bc6 {[%emt 0:00:02]} ({Better is} 28... Rxf1+ $14 29. Kxf1 Kg7) 29. Rc1 {[%emt 0:00:05]} Bd7 {[%emt 0:00:03]} (29... Rfd8 $16) 30. Rxf8+ $18 {[%emt 0:00:24]} Kxf8 {[%emt 0:00:01]} 31. Rxc8+ {[%emt 0:00:07]} Bxc8 {[%emt 0:00:01][%mdl 4096] Endgame KB-KB} 32. Kf2 {[%emt 0:00:04]} Kg7 {[%emt 0:00:18]} (32... Ke7 {keeps fighting.} 33. Ke2 Kf7) 33. Ke3 {[%emt 0:00:02] Threatens to win with Kd2.} Bd7 $2 {[%emt 0:00:01] [#]} (33... g5 34. hxg5 h6) 34. a4 $1 {[%emt 0:00:01]} bxa4 {[%emt 0:00:23]} 35. Bxa6 {[%emt 0:00:04]} h5 $2 {[%emt 0:00:03]} (35... Kh6 36. Kd2 g5) 36. Bd3 {[%emt 0:00:01]} Kh6 {[%emt 0:00:03]} 37. Kd2 {[%emt 0:00:04]} g5 {[%emt 0:00:01]} 38. Kc3 {[%emt 0:00:01]} gxh4 {[%emt 0:00:03]} 39. gxh4 {[%emt 0:00:01] Weighted Error Value: White=0.11 (very precise) /Black=0.54} 1-0

[Event "4th Tata Steel India Blitz Open 2022"]
[Site "Kolkota"]
[Date "2022.12.03"]
[Round "2.4"]
[White "Nihal Sarin"]
[Black "Abdusattorov, Nodirbek"]
[Result "1/2-1/2"]
[ECO "D02"]
[WhiteElo "2670"]
[BlackElo "2713"]
[Annotator "TA"]
[PlyCount "75"]
[EventDate "2022.11.29"]
[EventType "tourn"]
[EventCountry "IND"]
[SourceTitle "playchess.com"]
[Source "ChessBase"]
[SourceQuality "1"]
[TimeControl "180+2"]

{[%evp 9,75,-16,16,19,25,32,22,15,27,27,18,19,18,24,24,31,40,22,24,12,20,16,34,21,43,19,24,22,28,21,18,5,14,0,0,0,0,0,6,-2,0,-9,-9,-10,-3,-8,0,0,0,0,0,0,0,0,0,0,0,0,0,0,0,0,0,0,0,0,0,0]} 1. d4 {[%emt 0:00:02][%cal Bd2d4,Bd4c5][%mdl 32]} Nf6 {[%emt 0:00:01]} 2. Nf3 {[%emt 0:00:02]} d5 {[%emt 0:00:02]} 3. c3 {[%emt 0:00:01]} c5 {[%emt 0:00:02]} 4. dxc5 {[%emt 0:00:01]} e6 {[%emt 0:00:03]} 5. Be3 {[%emt 0:00:02]} a5 {[%emt 0:00:01]} 6. c4 {[%emt 0:00:06] D02: 1 d4 d5 2 Nf3 sidelines, including 2...Nf6 3 g3 and 2...Nf6 3 Bf4.} Na6 {[%emt 0:00:01]} 7. cxd5 {[%emt 0:00:03] [#]} Qxd5 $146 {[%emt 0:00:03]} ({Predecessor:} 7... Nxc5 8. Nc3 Nxd5 9. Nxd5 Qxd5 10. Qxd5 exd5 11. g3 Na4 12. Bd4 Bb4+ 13. Kd1 O-O {½-½ (40) Erigaisi,A (2689)-Van Foreest,J (2680) Abu Dhabi 2022}) 8. Bd4 {[%emt 0:00:06]} Bxc5 {[%emt 0:00:04]} 9. Nc3 {[%emt 0:00:02]} Qd8 {[%emt 0:00:11]} 10. e4 {[%emt 0:00:01]} O-O {[%emt 0:00:09]} 11. Bxa6 {[%emt 0:00:02]} Bxd4 {[%emt 0:00:02]} 12. Qxd4 {[%emt 0:00:02]} Rxa6 {[%emt 0:00:04]} 13. Rd1 {[%emt 0:00:14]} Qxd4 {[%emt 0:00:42]} 14. Nxd4 {[%emt 0:00:17][%cal Bf3d4,Bd4e2,Be2f4,Bf4d3][%mdl 32]} Bd7 {[%emt 0:00:01][%cal Ob7b5]} 15. f3 {[%emt 0:00:06]} Rc8 {[%emt 0:00:02]} 16. Kf2 {[%emt 0:00:15]} Kf8 {[%emt 0:00:09]} 17. Rd2 {[%emt 0:00:02]} (17. e5 $5 {[%cal Re5f6]} Nd5 18. Nxd5 exd5 19. f4 $14) 17... Be8 {[%emt 0:00:07]} 18. Rhd1 {[%emt 0:00:12]} Rb6 {[%emt 0:00:11]} 19. Nde2 {[%emt 0:00:26]} Ke7 {[%emt 0:00:18] The position is equal.} 20. h4 {[%emt 0:00:29]} (20. Rc1 {simplifies} Kf8 21. Nb1 Rbc6 22. Rxc6 Bxc6 23. Rc2) 20... Nd7 {[%emt 0:00:12]} 21. Nf4 {[%emt 0:00:08][%cal Od2d7]} (21. f4 {simplifies} Nc5 22. h5 Na4 23. Nxa4 Bxa4 24. Re1) 21... Rbc6 {[%emt 0:00:03]} (21... Kf8 {simplifies} 22. Nd3 Nc5 23. Nxc5 Rxc5 24. g4 Ke7) 22. Nb5 {[%emt 0:00:10] [#] And now Na7 would win.} Rc5 {[%emt 0:00:35]} 23. Nd6 {[%emt 0:00:08][%cal Od6e8] Black must now prevent Nxe8! Pair of Knights!} R8c7 {[%emt 0:00:00]} 24. b3 {[%emt 0:00:24]} h6 {[%emt 0:00:09]} 25. Nxe8 Kxe8 {[%emt 0:00:01]} 26. Nd3 {[%emt 0:00:15]} Rc2 {[%emt 0:00:02]} 27. Ke3 {[%emt 0:00:01]} Ke7 {[%emt 0:00:02]} 28. Rxc2 {[%emt 0:00:05]} Rxc2 $11 {[%emt 0:00:01][%mdl 4096] Endgame KRN-KRN} 29. Rd2 {[%emt 0:00:01]} Rc7 {[%emt 0:00:05]} 30. g4 {[%emt 0:00:03]} g5 {[%emt 0:00:01]} 31. hxg5 {[%emt 0:00:01]} hxg5 {[%emt 0:00:01]} 32. Rh2 {[%emt 0:00:04]} b5 {[%emt 0:00:10]} 33. Rh5 {[%emt 0:00:02]} Kf6 {[%emt 0:00:03]} 34. Rh6+ {[%emt 0:00:02]} Kg7 {[%emt 0:00:02]} 35. Rh5 {[%emt 0:00:02]} Kf6 {[%emt 0:00:06]} 36. Rh6+ {[%emt 0:00:02]} Kg7 {[%emt 0:00:05]} 37. Rh5 {[%emt 0:00:01]} Kf6 {[%emt 0:00:12]} 38. Rh6+ {[%emt 0:00:03] Weighted Error Value: White=0.04 (flawless) /Black=0.03 (flawless)} 1/2-1/2

[Event "4th Tata Steel India Blitz Open 2022"]
[Site "Kolkota"]
[Date "2022.12.03"]
[Round "2.5"]
[White "Erigaisi Arjun"]
[Black "Vidit, Santosh Gujrathi"]
[Result "1/2-1/2"]
[ECO "D00"]
[WhiteElo "2718"]
[BlackElo "2724"]
[Annotator "TA"]
[PlyCount "81"]
[EventDate "2022.11.29"]
[EventType "tourn"]
[EventCountry "IND"]
[SourceTitle "playchess.com"]
[Source "ChessBase"]
[SourceQuality "1"]
[TimeControl "180+2"]

{[%evp 9,81,0,4,7,0,6,0,5,33,-11,54,-10,50,-18,0,-11,13,-37,-26,-33,-33,-18,-33,-27,-26,-39,-29,-29,0,0,0,0,0,-7,0,0,49,39,42,-38,0,0,0,0,0,-71,0,0,167,166,5891,5927,5173,4882,2860,444,439,414,424,331,950,941,860,0,0,0,0,0,0,0,0,0,0,0]} 1. d4 {[%emt 0:00:01]} Nf6 {[%emt 0:00:02]} 2. Bg5 {[%emt 0:00:02]} d5 {[%emt 0:00:02]} 3. e3 {[%emt 0:00:02]} c5 {[%emt 0:00:05]} 4. Bxf6 {[%emt 0:00:02]} gxf6 {[%emt 0:00:01]} 5. dxc5 {[%emt 0:00:03]} e6 {[%emt 0:00:07][%cal Be7e6,Be6e5,Be5e4][%mdl 32]} 6. Nf3 {[%emt 0:00:03] D00: 1 d4 d5: Unusual lines.} Bxc5 {[%emt 0:00:06]} 7. Be2 {[%emt 0:00:02]} Nc6 {[%emt 0:00:14]} 8. O-O {[%emt 0:00:03]} e5 {[%emt 0:00:13] [#]} 9. a3 $146 {[%emt 0:00:19]} (9. c4 $5 {[%cal Rc4d5]}) ({Predecessor:} 9. c4 d4 10. exd4 Nxd4 11. Nxd4 Bxd4 12. Qc2 f5 13. Nd2 Qe7 14. Rad1 O-O 15. b4 Qxb4 {½-½ (68) Adams,M (2743)-Kramnik,V (2777) Dortmund 2014}) 9... a6 {[%emt 0:00:16]} (9... Rg8 $11) 10. Nbd2 {[%emt 0:00:18]} (10. c4 $14) 10... Rg8 {[%emt 0:00:05]} (10... O-O $11) 11. Kh1 {[%emt 0:00:04]} (11. c4 $1 $14) 11... Be6 {[%emt 0:00:14]} 12. Rc1 {[%emt 0:00:12]} Ba7 {[%emt 0:00:07]} (12... e4 $5 {[%cal Re4f3]} 13. Ne1 Be7 $11) 13. b4 {[%emt 0:00:16]} (13. c4 $11) 13... e4 $15 {[%emt 0:00:05]} 14. Ne1 {[%emt 0:00:15]} f5 {[%emt 0:00:02] Threatens to win with ...d4.} 15. c3 {[%emt 0:00:03] Against d4} h5 {[%emt 0:00:48]} 16. b5 {[%emt 0:00:48]} axb5 {[%emt 0:00:28]} 17. Bxb5 {[%emt 0:00:02]} h4 {[%emt 0:00:01]} 18. Nb3 {[%emt 0:00:02]} Bb8 {[%emt 0:00:17]} 19. f4 {[%emt 0:00:18]} Rxa3 {[%emt 0:00:07]} 20. Nd4 {[%emt 0:00:06]} Bd7 {[%emt 0:00:03]} 21. Ne2 {[%emt 0:00:12]} Qb6 {[%emt 0:00:04][%csl LRb5,LRe3]} (21... Ra5 {simplifies} 22. Rb1 Ne7 23. Bxd7+ Qxd7 24. Nd4 Ba7) 22. Rb1 {[%emt 0:00:11]} Qc5 {[%emt 0:00:06]} (22... Qxe3 23. Nc2 (23. Qxd5 Ra5 $11) 23... Qc5 24. Nxa3 Qxa3 25. Qxd5 $18) (22... Ra5 $11 23. Qxd5 (23. Nd4 Qd8 $11) 23... Qxe3) 23. Nc2 $14 {[%emt 0:00:09][%mdl 1024] White has compensation.} Ra2 {[%emt 0:00:01]} 24. Ncd4 {[%emt 0:00:02]} ({White should play} 24. Bxc6 $14 Bxc6 25. Nb4) 24... Bd6 {[%emt 0:00:04]} 25. Qb3 {[%emt 0:00:06]} Rd2 {[%emt 0:00:05]} 26. Qa4 {[%emt 0:00:03] [#] Strongly threatening Bxc6.} Ke7 {[%emt 0:00:03]} 27. Bxc6 {[%emt 0:00:05]} (27. Nb3 $1 $11 {keeps the balance.} Qxe3 28. Nxd2 Qxd2 29. Rbd1) 27... bxc6 {[%emt 0:00:01]} ({Black should try} 27... Bxc6 $17 28. Qb3 (28. Nxf5+ $2 Kf6 $19) 28... Qa3 29. Qxa3 Bxa3) 28. Rb7 $11 {[%emt 0:00:01][%csl LRc6,LRf5] Dancing on a razor blade.} Rxe2 $2 {[%emt 0:00:05]} 29. Nxe2 $18 {[%emt 0:00:02]} Qxe3 {[%emt 0:00:04]} (29... Rb8 30. Rfb1 Rxb7 31. Rxb7 Kd8) 30. Qxc6 {[%emt 0:00:01]} (30. Nd4 Qd2 31. Rxd7+ (31. Qxc6 $2 Qxg2#) (31. Nxc6+ $2 Kf8 $19) (31. Nxf5+ Ke6 $16) 31... Kxd7 32. Qxc6+ (32. Nxf5 $2 Qxg2#) 32... Ke7 33. Nxf5+ Ke6 34. Qxd6+ (34. Nxh4 Qe2 $11) 34... Kxf5 35. Qe5+ Kg6 $16) 30... Rd8 {[%emt 0:00:02]} 31. Nd4 {[%emt 0:00:04]} Qd3 {[%emt 0:00:02]} 32. Nxf5+ {[%emt 0:00:02]} (32. Ra1 $142 Qxd4 33. cxd4) 32... Ke8 {[%emt 0:00:02][%cal Rd3f1] [#]} 33. Ng7+ {[%emt 0:00:04]} (33. Nxd6+ $2 Kf8 34. Qc5 Qxf1+ 35. Qg1 Qxf4 $19) 33... Ke7 {[%emt 0:00:02][%cal Rd3f1]} 34. Rg1 {[%emt 0:00:02] White wants to mate with Nf5+.} h3 $2 {[%emt 0:00:03]} (34... e3 35. f5 f6 36. Rxd7+ (36. Ne6 h3 $11) 36... Rxd7) 35. Nf5+ {[%emt 0:00:02]} Ke8 {[%emt 0:00:01]} 36. Ng7+ $2 {[%emt 0:00:02]} (36. Qxd6 hxg2+ 37. Rxg2 Qf1+ 38. Rg1 Qf3+ 39. Rg2 Qf1+ 40. Rg1 Qf3+ 41. Rg2 Qf1+ $11) ({White has to play} 36. Nxd6+ $18 Kf8 37. Qb6 (37. Rxd7 hxg2+ 38. Rxg2 Qf1+ 39. Rg1 Qf3+ 40. Rg2 Qf1+ 41. Rg1 Qf3+ 42. Rg2 Qf1+ $11) 37... hxg2+ 38. Rxg2 Qd1+ 39. Qg1 Qxg1+ 40. Kxg1) 36... Ke7 $1 $11 {[%emt 0:00:02] The position is equal.} 37. Rxd7+ {[%emt 0:00:04]} Rxd7 {[%emt 0:00:01]} 38. Nf5+ {[%emt 0:00:01]} Kf6 {[%emt 0:00:04] ...hxg2+ is the strong threat.} 39. Qxd7 {[%emt 0:00:01]} hxg2+ {[%emt 0:00:00]} 40. Rxg2 {[%emt 0:00:01]} Qf1+ {[%emt 0:00:01]} 41. Rg1 {[%emt 0:00:01] Weighted Error Value: White=0.59/Black=0.21 (precise)} 1/2-1/2

[Event "4th Tata Steel India Blitz Open 2022"]
[Site "Kolkota"]
[Date "2022.12.03"]
[Round "3.1"]
[White "Vidit, Santosh Gujrathi"]
[Black "Nihal Sarin"]
[Result "1-0"]
[ECO "E94"]
[WhiteElo "2724"]
[BlackElo "2670"]
[Annotator "TA"]
[PlyCount "85"]
[EventDate "2022.11.29"]
[EventType "tourn"]
[EventCountry "IND"]
[SourceTitle "playchess.com"]
[Source "ChessBase"]
[SourceQuality "1"]
[TimeControl "180+2"]

{[%evp 15,85,37,37,30,37,37,32,32,50,51,46,52,93,93,86,90,78,76,112,114,110,106,112,113,195,179,197,192,262,269,259,263,269,275,273,255,370,374,368,358,580,577,600,612,630,641,620,301,855,837,908,675,674,664,660,652,870,620,729,720,680,503,622,621,606,534,694,658,589,546,575,555]} 1. e4 {[%emt 0:00:01]} g6 {[%emt 0:00:02]} 2. d4 {[%emt 0:00:01]} Bg7 {[%emt 0:00:01]} 3. c4 {[%emt 0:00:01]} d6 {[%emt 0:00:01]} 4. Nc3 {[%emt 0:00:03]} Nf6 {[%emt 0:00:08]} 5. Nf3 {[%emt 0:00:04]} O-O {[%emt 0:00:04]} 6. Be2 {[%emt 0:00:01]} e5 {[%emt 0:00:01]} 7. O-O {[%emt 0:00:04]} Bg4 {[%emt 0:00:02]} 8. d5 {[%emt 0:00:09]} a5 {[%emt 0:00:02]} 9. Be3 {[%emt 0:00:03] E94: King's Indian: Classical: 6 Be2 e5 7 0-0: Various Black 7th moves.} Na6 {[%emt 0:00:03]} 10. Nd2 {[%emt 0:00:05]} Bd7 {[%emt 0:00:01]} 11. a3 {[%emt 0:00:15] White is slightly better.} h5 {[%emt 0:00:16]} 12. h3 {[%emt 0:00:07] Inhibits Ng4.} Nh7 {[%emt 0:00:13] [#]} 13. b4 $146 {[%emt 0:00:09]} ({Predecessor:} 13. Qc2 Bf6 14. Nf3 Ng5 15. Qd2 Nxf3+ 16. Bxf3 Nc5 17. Bd1 a4 18. Bc2 b6 19. Rae1 {1-0 (85) Mendonca,L (2551)-Kotronias,V (2465) Hamburg 2022}) 13... axb4 {[%emt 0:00:10] White leaves nothing to chance now.} 14. axb4 {[%emt 0:00:01] And now c5 would win.} Nxb4 {[%emt 0:00:01] [#]} 15. Rxa8 {[%emt 0:00:24]} Qxa8 {[%emt 0:00:02] [#]} 16. c5 $1 {[%emt 0:00:01]} Na6 {[%emt 0:00:37]} 17. cxd6 {[%emt 0:00:05]} cxd6 {[%emt 0:00:01]} 18. Nc4 {[%emt 0:00:06]} Qb8 {[%emt 0:00:04]} 19. Qb3 {[%emt 0:00:19] White has more active pieces. The black rooks are badly placed.} Bf6 {[%emt 0:01:28]} (19... Nf6 $16) 20. Qb6 $18 {[%emt 0:00:44]} Be7 {[%emt 0:00:07]} 21. Rb1 {[%emt 0:00:03][%cal Bf1b1,Bb1b7,Bb7b6][%mdl 32]} Rc8 {[%emt 0:00:11]} (21... Rd8 {was called for.} 22. Qxb7 Qxb7 23. Rxb7 Nf8 24. Nxe5 dxe5) 22. Qxb7 {[%emt 0:00:08]} Qxb7 {[%emt 0:00:01]} 23. Rxb7 {[%emt 0:00:01]} Rc7 {[%emt 0:00:01]} 24. Rb6 {[%emt 0:00:09][%csl LRa6,LRd6]} Nc5 {[%emt 0:00:06]} 25. Nxd6 {[%emt 0:00:08] Strongly threatening Ncb5.} Na4 {[%emt 0:00:04]} (25... Nf6 {was worth a try.} 26. Nc4 Ncxe4) 26. Nxa4 {[%emt 0:00:03]} ({Not} 26. Rb8+ Nf8 27. Nxa4 Bxd6 $18) 26... Bxa4 {[%emt 0:00:02]} 27. Nc4 {[%emt 0:00:08] d6 is the strong threat.} Bc5 {[%emt 0:00:02] Prevents d6.} (27... Bf6 {keeps fighting.} 28. Rb8+ Kg7) 28. Rb8+ {[%emt 0:00:07]} Kg7 {[%emt 0:00:02]} 29. d6 {[%emt 0:00:05]} Rc6 {[%emt 0:00:04]} 30. d7 {[%emt 0:00:02]} Be7 {[%emt 0:00:02]} 31. Nb6 {[%emt 0:00:17]} (31. d8=Q $142 Bxd8 32. Rxd8) 31... Bc2 $2 {[%emt 0:00:02]} (31... Rxb6 32. Rxb6 Bxd7) 32. Nd5 {[%emt 0:00:03] White is clearly winning.} Bh4 {[%emt 0:00:02]} 33. Rc8 {[%emt 0:00:04]} Ba4 {[%emt 0:00:02]} 34. d8=Q {[%emt 0:00:03]} Bxd8 {[%emt 0:00:01]} 35. Rxd8 {[%emt 0:00:01]} Bc2 {[%emt 0:00:02]} 36. f3 {[%emt 0:00:01] aiming for Ne7.} Nf8 {[%emt 0:00:01]} 37. Rb8 {[%emt 0:00:03]} Ne6 {[%emt 0:00:02]} 38. Rb6 {[%emt 0:00:01]} Rc8 {[%emt 0:00:01]} 39. h4 {[%emt 0:00:02]} Ba4 {[%emt 0:00:02]} 40. Rb2 {[%emt 0:00:04]} Rd8 {[%emt 0:00:03]} 41. Kf2 {[%emt 0:00:01]} Bc6 {[%emt 0:00:01]} 42. Nb4 {[%emt 0:00:02]} Be8 {[%emt 0:00:01]} 43. Nd3 {[%emt 0:00:01] Weighted Error Value: White=0.50/Black=0.40} 1-0

[Event "4th Tata Steel India Blitz Open 2022"]
[Site "Kolkota"]
[Date "2022.12.03"]
[Round "3.2"]
[White "Rameshbabu, Praggnanandhaa"]
[Black "Maghsoodloo, Parham"]
[Result "1-0"]
[ECO "A07"]
[WhiteElo "2678"]
[BlackElo "2720"]
[Annotator "TA"]
[PlyCount "76"]
[EventDate "2022.11.29"]
[EventType "tourn"]
[EventCountry "IND"]
[SourceTitle "playchess.com"]
[Source "ChessBase"]
[SourceQuality "1"]
[TimeControl "180+2"]

{[%evp 10,76,15,7,29,35,41,18,31,25,43,43,32,37,39,20,39,42,37,29,36,21,29,17,30,8,10,0,0,0,0,-9,-5,-15,4,0,14,0,0,0,0,0,0,0,0,0,0,0,0,0,0,0,0,0,22,20,20,23,20,20,20,24,25,28,70,67,68,9,11]} 1. Nf3 {[%emt 0:00:01]} d5 {[%emt 0:00:01]} 2. g3 {[%emt 0:00:01]} c6 {[%emt 0:00:01]} 3. Bg2 {[%emt 0:00:01]} Bg4 {[%emt 0:00:01]} 4. O-O {[%emt 0:00:04]} Nd7 {[%emt 0:00:02]} 5. h3 {[%emt 0:00:02]} Bh5 {[%emt 0:00:00]} 6. d3 {[%emt 0:00:01]} e5 {[%emt 0:00:05] A07: Réti Opening: New York and Capablanca Systems.} 7. c4 {[%emt 0:00:02]} dxc4 {[%emt 0:00:03]} 8. dxc4 {[%emt 0:00:02]} Ngf6 {[%emt 0:00:07]} 9. Nc3 {[%emt 0:00:02]} Bc5 {[%emt 0:00:03]} 10. Nh4 {[%emt 0:00:02]} O-O {[%emt 0:00:05]} 11. Qc2 {[%emt 0:00:04]} Re8 {[%emt 0:00:02]} 12. b3 {[%emt 0:00:14] [#]} Bg6 $146 {[%emt 0:00:19]} (12... Nf8 {seems wilder.} 13. Rd1 Qc7 14. g4 Bg6) ({Predecessor:} 12... a5 13. Bb2 Qe7 14. Na4 Ba3 15. Bxa3 Qxa3 16. g4 Bg6 17. Nxg6 hxg6 18. c5 g5 {½-½ (41) Panjwani,R (2450)-Steingrimsson,H (2549) New York 2019}) 13. Nxg6 {[%emt 0:00:02]} hxg6 {[%emt 0:00:02]} 14. Bb2 {[%emt 0:00:02]} Qe7 {[%emt 0:00:01]} 15. Rad1 {[%emt 0:00:15]} Rad8 {[%emt 0:00:09]} 16. e3 {[%emt 0:00:15]} Ba3 {[%emt 0:00:05]} 17. Ba1 {[%emt 0:00:01]} Bb4 {[%emt 0:00:15]} 18. Ne4 {[%emt 0:00:37]} Nxe4 {[%emt 0:00:18]} 19. Bxe4 {[%emt 0:00:19]} f5 {[%emt 0:00:01]} 20. Bf3 {[%emt 0:00:01]} e4 {[%emt 0:00:02]} 21. Be2 {[%emt 0:00:01]} Bd6 {[%emt 0:00:01]} 22. Bd4 {[%emt 0:00:24]} c5 {[%emt 0:00:24]} 23. Bc3 {[%emt 0:00:01]} Be5 {[%emt 0:00:01]} 24. Rd5 {[%emt 0:00:01]} Bxc3 {[%emt 0:00:02]} 25. Qxc3 {[%emt 0:00:01]} Nf6 {[%emt 0:00:02]} 26. Rxd8 {[%emt 0:00:17]} Rxd8 {[%emt 0:00:01]} 27. a3 {[%emt 0:00:07]} b6 {[%emt 0:00:02]} 28. b4 {[%emt 0:00:02]} g5 {[%emt 0:00:02]} 29. Rb1 {[%emt 0:00:05]} Qc7 {[%emt 0:01:01]} 30. bxc5 {[%emt 0:00:02]} bxc5 {[%emt 0:00:18]} ({But not} 30... Qxc5 31. Rb5 Qc8 32. g4 $16) 31. Rb5 {[%emt 0:00:07]} f4 {[%emt 0:00:00]} 32. exf4 {[%emt 0:00:17]} gxf4 {[%emt 0:00:00]} 33. gxf4 {[%emt 0:00:01]} Qxf4 {[%emt 0:00:00] [#] And now ...Rd2 would win.} 34. Qe3 {[%emt 0:00:02] Prevents Rd2.} (34. Qg3 {keeps more tension.} Qd2 35. Bf1 Nd7 36. Rb7) 34... Qxe3 {[%emt 0:00:28]} 35. fxe3 {[%emt 0:00:01]} Rd2 {[%emt 0:00:01]} 36. Kf1 {[%emt 0:00:00]} Rc2 {[%emt 0:00:03]} 37. Ra5 {[%emt 0:00:07]} Nd7 {[%emt 0:00:04]} 38. Ke1 {[%emt 0:00:13]} (38. Bg4 $14 Nb6 39. Be6+ (39. Rxc5 Kf7 $16) (39. Rxa7 Nxc4 40. Be6+ Kh7 $11) 39... Kh7 40. Rxc5) 38... Ra2 {[%emt 0:00:04][%mdl 32768] Weighted Error Value: White=0.07 (flawless) /Black=0.07 (flawless) . Loss on time!?} 1-0